Cogmind - Beta 16.1 @@@ ROGUE MODE // 2026.04.22 @ 21:02:39 Player: Hinzy Result: Destroyed by P-60 Hacker with Light Nuclear Core chain reaction Performance ------------- Evolutions (1) 500 Regions Visited (4) 800 Robots Destroyed (22) 110 Value Destroyed (572) 572 Prototype IDs (4) 80 Alien Tech Used (0) 0 Bonus (359) 359 TOTAL SCORE: 2421 Bonus ------- Follower Combat Kills 159 Entered Garrisons 200 Cogmind --------- Core Integrity 0/400 Matter 300/300 Energy 100/100 System Corruption 0% Temperature Cool (18) Movement Walking (120) Location -9/Garrison Parts ------- > --- POWER (1) -------- (None) > --- PROPULSION (2) --- Aluminum Leg > --- UTILITY (4) ------ Structural Scanner Signal Interpreter Terrain Scan Processor Hacking Suite > --- WEAPON (2) ------- Backup Laser III Backup Laser III > --- INVENTORY (5) ---- F-cell Engine Armored Wheel Hover Unit Datajack Peak State ------------ > --- POWER ------------ F-cell Engine > --- PROPULSION ------- Hover Unit Backup Propulsion III > --- UTILITY ---------- Structural Scanner Signal Interpreter Terrain Scan Processor Hacking Suite > --- WEAPON ----------- Backup Laser III Backup Laser III > --- INVENTORY -------- Light Ion Engine Armored Wheel Hover Unit Datajack [Rating: 23] Favorites ----------- Power Light Ion Engine Engine Light Ion Engine Power Core Light Nuclear Core Propulsion Aluminum Leg Leg Aluminum Leg Wheel Armored Wheel Hover Unit Backup Propulsion III Flight Unit Flight Unit Utility Signal Interpreter Device Seismic Detector Storage Small Storage Unit Processor Signal Interpreter Hackware Hacking Suite Weapon Backup Laser III Energy Gun Backup Laser III Ballistic Gun Assault Rifle Launcher Grenade Launcher Slashing Weapon Mining Claw Special Melee Weapon Datajack Build | -11 -10 -9 -9 -9 ------- Run | Yrd Mat Mat Sto Gar Slots Evolved 2 | . . 2 . . Power . | . . . . . Propulsion . | . . . . . Utility 2 | . . 2 . . Weapon . | . . . . . Parts Attached 21 | 1 10 4 6 . Power 4 | . 1 . 3 . Engine 3 | . 1 . 2 . Core 1 | . . . 1 . Reactor . | . . . . . Propulsion 5 | . 2 1 2 . Treads . | . . . . . Leg 1 | . . . 1 . Wheel 1 | . . 1 . . Hover 1 | . . . 1 . Flight 2 | . 2 . . . Utility 7 | 1 2 3 1 . Device 4 | 1 1 2 . . Storage . | . . . . . Processor 2 | . 1 1 . . Hackware 1 | . . . 1 . Protection . | . . . . . Artifact . | . . . . . Weapon 5 | . 5 . . . Energy Gun . | . . . . . Energy Cannon . | . . . . . Ballistic Gun 2 | . 2 . . . Ballistic Cannon . | . . . . . Launcher 1 | . 1 . . . Special Weapon . | . . . . . Impact Weapon . | . . . . . Slashing Weapon 1 | . 1 . . . Piercing Weapon . | . . . . . Special Melee Weapon 1 | . 1 . . . Unidentified Prototypes 1 | . . . 1 . Parts Lost 11 | . 1 4 5 1 Power 4 | . . 1 2 1 Propulsion 3 | . . . 3 . Utility 2 | . . 2 . . Weapon 2 | . 1 1 . . Highest Loss Streak 4 | . 1 4 3 1 To Critical Strikes . | . . . . . Average Backups 5 | 6 6 4 3 4 Power . | 1 . . 1 1 Propulsion 1 | 3 1 . 1 2 Utility . | . 1 1 . . Weapon 1 | 1 2 1 . . Tool/Special . | . . . . . Unused Backups 4 | . 2 . . 2 Power 2 | . 2 . . . Propulsion 1 | . . . . 1 Utility . | . . . . . Weapon . | . . . . . Tool/Special 1 | . . . . 1 Average Slot Usage (%) 90 | . 94 60 91 88 Engine 9 | . 14 5 3 11 Core 2 | . . . 5 . Leg 12 | . 23 . . 11 Hover 6 | . . . 16 . Flight 4 | . 4 14 1 . Device 13 | . 14 19 11 11 Storage 5 | . 11 . . . Processor 10 | . . 13 22 22 Hackware 3 | . . . 8 11 Energy Gun 11 | . 5 . 21 22 Ballistic Gun 6 | . 11 4 . . Slashing Weapon 1 | . 2 . . . Special Melee Weapon 2 | . 5 . . . Peak Build Rating 23 | 7 8 10 23 16 Average Rating 11 | 6 6 6 18 16 On Entrance 8 | 6 7 6 5 16 Avg Prop Armor Cover (%) 6 | . . . 6 . Naked Turns . | . . . . . Heaviest Build 17 | 13 13 8 17 8 Greatest Support 20 | 20 20 12 14 10 Greatest Overweight (x) 2 | . 2 . 1 . Average Overweight (x) . | . . . . . Largest Inventory Capacity 8 | 8 8 5 5 5 Average Capacity 6 | 8 7 5 5 5 Most Carried 8 | 7 8 5 5 4 Average Carried 5 | 6 6 4 3 4 Final Capacity 8 | 8 5 5 5 5 Final Carried 6 | 6 5 2 4 4 Class Distribution -------------------- 84% | Mutant 10% | Commander-Mutant 5% | Scout Dominant Class ---------------- Mutant | -10/Materials Mutant | -9/Materials Mutant | -9/Storage Mutant | -9/Garrison Resources | -11 -10 -9 -9 -9 ----------- Run | Yrd Mat Mat Sto Gar Matter Collected 619 | 205 140 . 274 . Remotely . | . . . . . Salvage Created 690 | 79 124 211 276 . Parts 43 | 4 12 15 12 . Haulers Intercepted . | . . . . . Recyclers Shooed 1 | . 1 . . . Parts Field Recycled . | . . . . . Retrieved Matter . | . . . . . Parts Self-Destructed . | . . . . . Prevented . | . . . . . Parts Restored . | . . . . . Kills | -11 -10 -9 -9 -9 ------- Run | Yrd Mat Mat Sto Gar Combat Hostiles Destroyed 13 | . 4 5 4 . Guns 6 | . 4 . 2 . AOE 5 | . . 5 . . Classes Destroyed 9 | 2 3 3 1 . Worker 1 | . . 1 . . Builder 2 | . . 1 1 . Tunneler 1 | 1 . . . . Recycler 2 | 1 . 1 . . Operator 2 | . 1 . 1 . Watcher 1 | . . . 1 . Swarmer 3 | . 3 . . . Grunt 5 | . 1 4 . . Sentry 5 | . . 1 4 . Best Kill Streak 8 | 1 3 8 2 . Combat Bots Only 5 | . 3 5 1 . Max Kills in Single Turn 2 | 1 1 2 1 . Gunslinging . | . . . . . Exploded 2 | . . 2 . . Melee . | . . . . . Uniques/NPCs Destroyed . | . . . . . Combat | -11 -10 -9 -9 -9 -------- Run | Yrd Mat Mat Sto Gar Hostile Shots Fired 147 | . 29 67 45 6 Missed 68 | . 13 37 16 2 Hits 79 | . 16 30 29 4 Projectile 79 | . 16 30 29 4 AOE 1 | . . . . 1 Critical Strikes 1 | . . . 1 . Damage Taken 1180 | . 164 464 442 110 Core 465 | . 59 154 211 41 Absorbed by Shields . | . . . . . Core Remaining (%) 88 | 100 76 . . . Volleys Fired 99 | 18 39 10 31 1 Largest 2 | 1 2 1 2 2 Hottest 80 | 50 70 30 80 80 Shots Fired 133 | 18 41 10 62 2 Gun 125 | 18 40 3 62 2 Cannon . | . . . . . Launcher 8 | . 1 7 . . Special . | . . . . . Kinetic 33 | . 30 3 . . Thermal 92 | 18 10 . 62 2 Explosive 8 | . 1 7 . . Electromagnetic . | . . . . . Robot Hit Streak 12 | 5 5 6 12 . Robot Miss Streak 4 | 4 4 1 3 2 Penetration Max . | . . . . . Secondary Targets 1 | . . . 1 . Max Gunslinging Chain 1 | . . . 1 . Shots Hit Robots 83 | 10 24 7 42 . Core Hits 43 | 3 9 19 11 1 Critical Kills . | . . . . . Critical Parts Destroyed 1 | . 1 . . . Critical Strikes 3 | 2 1 . . . Burn 2 | 2 . . . . Destroy 1 | . 1 . . . Melee Attacks 11 | . 11 . . . Impact . | . . . . . Slashing 9 | . 9 . . . Piercing . | . . . . . Sneak Attacks 2 | . 2 . . . Combat Hostiles . | . . . . . Follow-up Attacks . | . . . . . Damage Inflicted 1720 | 126 361 672 536 25 Guns 965 | 126 264 14 536 25 Cannons . | . . . . . Explosions 679 | . 21 658 . . Melee 74 | . 74 . . . Ramming 2 | . 2 . . . Kinetic 204 | . 190 14 . . Thermal 761 | 126 74 . 536 25 Explosive 679 | . 21 658 . . Electromagnetic . | . . . . . Impact . | . . . . . Slashing 74 | . 74 . . . Piercing . | . . . . . Highest Corruption . | . . . . . Average Corruption . | . . . . . Corruption Purged . | . . . . . Corruption Blocked . | . . . . . Overload Shots . | . . . . . Overflow Damage . | . . . . . Projectiles . | . . . . . Explosions . | . . . . . Melee . | . . . . . Knockbacks . | . . . . . Impact . | . . . . . Kinetic . | . . . . . Secondary . | . . . . . Self-Inflicted Damage 96 | . . 96 . . Shots 4 | . . 4 . . Rammed . | . . . . . Targets Rammed 1 | . 1 . . . Kicked 1 | . 1 . . . Crushed . | . . . . . Highest Temperature 112 | 80 30 2 112 6 Average Temperature 31 | 35 11 1 35 4 Received Heat Transfer 393 | . 42 186 153 12 Siege Activations . | . . . . . Martial Activations . | . . . . . Shielding Activations . | . . . . . Robots Disrupted . | . . . . . Combat Hostiles . | . . . . . Robots Corrupted . | . . . . . Combat Hostiles . | . . . . . Parts Fried . | . . . . . Impact Corruptions . | . . . . . Robots Melted 2 | . . . 2 . Combat Hostiles 2 | . . . 2 . Parts Melted 12 | 1 . . 11 . Heat Transferred 2368 | 518 222 . 1554 74 Parts Sabotaged . | . . . . . Parts Stolen . | . . . . . Parts Stripped . | . . . . . Power Chain Reactions . | . . . . . Alert | -11 -10 -9 -9 -9 ------- Run | Yrd Mat Mat Sto Gar Maximum Alert Level 1 | . . 1 . . Low Security (%) 95 | 100 100 47 100 100 Level 1 4 | . . 52 . . Level 2 . | . . . . . Level 3 . | . . . . . Level 4 . | . . . . . Level 5 . | . . . . . High Security . | . . . . . Max Security . | . . . . . Peak Influence 269 | 5 113 269 116 32 Initial 100 | . . 39 100 32 Average 43 | 2 24 173 46 32 Influence Increases 813 | 10 177 290 336 . Destroy 0b10 Robot/C 360 | . 80 100 180 . Destroy 0b10 Robot/NC 45 | 10 5 15 15 . Destroy Leader 132 | . 20 30 82 . Allied During Kill 36 | . . . 36 . Successful Hack 31 | . 5 3 23 . Select Force Hacks 60 | . . 60 . . Disable Machine 45 | . 15 30 . . Destroy Structure 44 | . 7 37 . . Partial Spotted 15 | . . 15 . . Lose Combat Pursuer 45 | . 45 . . . Influence Decreases 811 | 10 83 145 525 48 Entered New Map 212 | . . 55 139 18 Time Decay 345 | 10 83 50 202 . Lost Part 100 | . . 40 50 10 Lost Ally 154 | . . . 134 20 Squads Dispatched 6 | . 2 2 2 . Investigation 3 | . . 2 1 . Extermination . | . . . . . Reinforcement 2 | . 2 . . . Assault . | . . . . . Garrison 1 | . . . 1 . Intercept . | . . . . . Searches Triggered . | . . . . . Construction Impeded . | . . . . . Haulers Reinforced . | . . . . . Active Scanning Responses . | . . . . . Cargo Convoy Interrupts . | . . . . . Stealth | -11 -10 -9 -9 -9 --------- Run | Yrd Mat Mat Sto Gar Distress Signals 2 | . . 2 . . Communications Jammed . | . . . . . Distress Signals . | . . . . . Times Spotted 48 | . 11 20 14 3 Peak Tracking Total 13 | . 4 13 2 3 Tactical Retreats 2 | . 2 . . . Traps | -11 -10 -9 -9 -9 ------- Run | Yrd Mat Mat Sto Gar Traps Triggered 1 | . . 1 . . Indirectly . | . . . . . Trap Hack Attempts . | . . . . . Triggered . | . . . . . Disarmed . | . . . . . Reprogrammed . | . . . . . Reused . | . . . . . Traps Extracted . | . . . . . Installed . | . . . . . Triggered . | . . . . . Machines | -11 -10 -9 -9 -9 ---------- Run | Yrd Mat Mat Sto Gar Machines Disabled 3 | . 1 2 . . Max in Single Turn 1 | . 1 1 . . Machines Repaired . | . . . . . Machines Dismantled . | . . . . . Machines Sabotaged . | . . . . . Overloaded Fab Kills . | . . . . . Hacking | -11 -10 -9 -9 -9 --------- Run | Yrd Mat Mat Sto Gar Machines Accessed 16 | . 5 4 7 . Terminals 10 | . 4 1 5 . Fabricators . | . . . . . Repair Stations 2 | . . 1 1 . Recycling Units 3 | . 1 2 . . Scanalyzers . | . . . . . Garrison Access 1 | . . . 1 . Total Hacks 38 | . 14 9 15 . Successful 23 | . 8 6 9 . Failed 15 | . 6 3 6 . Catastrophic 1 | . . . 1 . Database Lockouts . | . . . . . Manual 30 | . 13 9 8 . Terminals 28 | . 12 3 13 . Fabricators . | . . . . . Repair Stations 2 | . . 1 1 . Recycling Units 7 | . 2 5 . . Scanalyzers . | . . . . . Garrison Access 1 | . . . 1 . Terminal Hacks 6 | . 2 . 4 . Prototype ID Bank 2 | . 1 . 1 . Open Door 1 | . . . 1 . Terminal Index 1 | . . . 1 . Recycling Unit Index 1 | . 1 . . . Zone Layout 1 | . . . 1 . Fabricator Hacks . | . . . . . Repair Station Hacks 1 | . . . 1 . Refit 1 | . . . 1 . Recycling Unit Hacks . | . . . . . Scanalyzer . | . . . . . Garrison Access Hacks 1 | . . . 1 . Unlock Access 1 | . . . 1 . Unauthorized Hacks 13 | . 5 5 3 . Terminals 10 | . 5 2 3 . Track 1 | . . 1 . . Botnet 3 | . 2 . 1 . Disrupt 1 | . . 1 . . Operators 1 | . 1 . . . Skim 4 | . 2 . 2 . Fabricators . | . . . . . Repair Stations 1 | . . 1 . . Mechanics 1 | . . 1 . . Recycling Units 2 | . . 2 . . Tunnel 2 | . . 2 . . Scanalyzers . | . . . . . Garrison Access . | . . . . . Data Cores Recovered 1 | . . . 1 . Used 1 | . . . 1 . Hacking Detections 10 | . 5 1 4 . Full Trace Events 1 | . . . 1 . Feedback Events . | . . . . . Feedback Blocked . | . . . . . Robot Schematics Acquired . | . . . . . Robots Built . | . . . . . Authchips . | . . . . . Time . | . . . . . Total Robot Build Rating . | . . . . . Part Schematics Acquired . | . . . . . Parts Built . | . . . . . Authchips . | . . . . . Time . | . . . . . Total Part Build Rating . | . . . . . Part Studies Acquired . | . . . . . Parts Repaired . | . . . . . Time . | . . . . . Parts Recycled . | . . . . . Recycled Matter . | . . . . . Retrieved Matter . | . . . . . Retrieved Components . | . . . . . Parts Scanalyzed . | . . . . . Part Schematics Acquired . | . . . . . Parts Damaged . | . . . . . Bothacking | -11 -10 -9 -9 -9 ------------ Run | Yrd Mat Mat Sto Gar Used RIF Installer . | . . . . . Robots Hacked 2 | . 2 . . . Non-combat 1 | . 1 . . . Combat 1 | . 1 . . . Robot Hacks Applied 2 | . 2 . . . parse_system 1 | . 1 . . . no_distress 1 | . 1 . . . Relay Couplers Released . | . . . . . Fabnet Peak Effective % . | . . . . . Robots Rewired . | . . . . . Allies Hacked . | . . . . . Hacks Repelled . | . . . . . Allies | -11 -10 -9 -9 -9 -------- Run | Yrd Mat Mat Sto Gar Total Allies 10 | . . . 10 . Largest Group 10 | . . . 10 1 Highest-Rated Group 88 | . . . 88 16 Highest-Rated Ally 16 | . . . 16 16 Total Orders 2 | . . . 2 . GUARD 2 | . . . 2 . Ally Attacks 55 | . . . 53 2 Total Damage 537 | . . . 496 41 Kills 6 | . . . 6 . Allies Corrupted . | . . . . . Allies Melted . | . . . . . Intel | -11 -10 -9 -9 -9 ------- Run | Yrd Mat Mat Sto Gar Active Infowar (turns) 1213 | 18 607 88 465 35 Sensors 96 | . 31 65 . . Terrain 49 | . . 49 . . Structural 564 | . . 64 465 35 Seismic 598 | 18 580 . . . Robot Analysis Total . | . . . . . Derelict Logs Recovered . | . . . . . Drone Launches . | . . . . . Drone Recoveries . | . . . . . Exploration | -11 -10 -9 -9 -9 ------------- Run | Yrd Mat Mat Sto Gar Turns Passed 1296 | 84 607 105 465 35 Spaces Moved 1039 | 37 388 183 405 26 Core 2 | . . . 2 . Treads . | . . . . . Legs 306 | 37 222 . 21 26 Wheels 3 | . . 3 . . Hover 372 | . . . 372 . Flight 356 | . 166 180 10 . Fastest Speed 37 | 120 37 37 40 120 Average Speed 73 | 120 84 39 70 120 Slowest Speed 200 | 120 200 90 136 120 Overloaded Moves . | . . . . . Propulsion Burnouts . | . . . . . Robots Hopped 6 | . . 6 . . Potential Cave-ins . | . . . . . Cave-ins Triggered . | . . . . . Exploration Rate (%) 30 | 4 63 23 54 6 Regions Visited 4 Branch Regions 1 Pre-discovered Areas 2 | . . 2 . . Known Exits Taken 3 | . 1 1 1 . Unknown Exits Taken 1 | 1 . . . . Scrap Searched . | . . . . . Spaces Dug 1 | . 1 . . . Terrain Destroyed 42 | . 6 36 . . Melee 1 | . 1 . . . Projectile . | . . . . . AOE 41 | . 5 36 . . Terrain Rammed . | . . . . . Walls Destroyed . | . . . . . Machines Disabled . | . . . . . Actions | -11 -10 -9 -9 -9 --------- Run | Yrd Mat Mat Sto Gar Total 1408 | 58 604 200 518 28 Wait 214 | 1 141 . 72 . Move 1023 | 36 387 170 404 26 Hop 6 | . . 6 . . Pick Up 8 | 1 4 2 1 . Fast Attach 12 | 1 5 . 6 . Attach 8 | . 1 6 1 . Detach 3 | . . 2 1 . Swap 8 | . 5 2 1 . Drop 14 | 1 10 2 1 . Fire 99 | 18 39 10 31 1 Melee 11 | . 11 . . . Ram . | . . . . . Kick 1 | . 1 . . . Crush . | . . . . . Escape Stasis . | . . . . . Rewire 1 | . . . . 1 Trap . | . . . . . Miscellaneous . | . . . . . Route ------- -11/Scrapyard -10/Materials (discovered 2 exits: *Mat x2) -9/Materials -9/Storage -9/Garrison History --------- Turn | Location | Event 8 | -11/Scrapyard | Discovered new exit (range 3) 85 | -11/Scrapyard | Entered Materials 310 | -10/Materials | Build established: Mutant 417 | -10/Materials | Discovered new exit (range 8) 621 | -10/Materials | Discovered new exit (range 8) 691 | -10/Materials | Identified exit to Materials 692 | -10/Materials | Entered another Materials area 692 | -9/Materials | Evolved 2 slots: Utility x2 788 | -9/Materials | Lost 4 parts (1p2u1w) 796 | -9/Materials | Discovered new exit (range 2) 797 | -9/Materials | Identified exit to Storage 797 | -9/Materials | Entered Storage 870 | -9/Storage | Core integrity fell below 50% 894 | -9/Storage | Assisted by bots powering up and referring to "LRC-V3" 986 | -9/Storage | Lost 3 allies 1086 | -9/Storage | Lost 5 allies 1213 | -9/Storage | Garrison activated, responded to threat 1225 | -9/Storage | Core integrity fell below 20% 1252 | -9/Storage | Lost 3 parts (1p2n) 1261 | -9/Storage | Identified exit to Garrison 1262 | -9/Storage | Entered Garrison 1262 | -9/Garrison | Accompanied by 1 ally 1297 | -9/Garrison | Destroyed by P-60 Hacker with Light Nuclear Core chain reaction Last Messages --------------- 01229_ Heat Sink melted. 01229_ Hvy. Assault Rifle melted. 01229_ Lgt. Armor Plating melted. 01229_ Y-45 Defender destroyed. 01236_ Acquired Aluminum Leg. 01237_ Acquired 10 matter. 01261_ Connecting with Garrison Access... >>Unlock Access door unlocked. 01261_ EXIT=UNLOCKED: GARRISON LOCATION=GARRISON GOAL=ESCAPE 01273_ Attempting to rewire D-53 Grenadier. 01273_ D-53 Grenadier is unpowered. 01288_ P-60 Hacker springs to life. 01296_ P-60 Hacker fails to hack Trooper 2a. 01297_ Chain reaction triggered in Lgt. Nuclear Core. 01297_ Trooper 2a destroyed. 01297_ Lgt. Ion Engine destroyed. Map ----- +----------------------------------------------------+ | ????????????????????????????????????????????????? | | ????????????????????????????????????????????????? | | ????????????????????????????????????????????????? | | ????????????????????????????????????????????????? | | ????????????????????????????????????????????????? | | ????????????????????????????????????????????????? | | ????????????????????????????????????????????????? | | ????????????????????????????????????????????????? | | ????????????????????????????????????????????????? | | ????????????????????????????????????????????????? | | ????????????????????????????????????????????????? | | ??????????????????????????######????????????????? | | ??????????????????????????# #????????????????? | | ??????????????????????????# #????????????????? | | ??????????????????????????# #????????????????? | | ??????????????????????????# ###????????????????? | | ??????????????????????????# ##?????????????????? | | ??????????????????????????# #?????????????????? | | ??????????????????????????# #?????????????????? | | ??????????????????????????# #?????????????????? | | ????????????????????###???# #?????????????????? | | ????????????????????# !???# ##?????"""" ""?????? | | ????????????????????# !???# ##### ????? | | ????????????????????# #???# #?????????? | | ???????????#### ##### ##### #?????????? | | ?????? p !@ ##### #?????????? | | ?????? p p % #??????? #?????????? | | ?????????##### ##### ###;####??????????????????? | | ????????????????????# #?????????????????????????? | | ????????????????????+ #?????????????????????????? | | ????????????????????# #?????????????????????????? | | ????????????????????# #?????????????????????????? | | ????????????????????# #?????????????????????????? | | ????????????????????# #?????????????????????????? | | ?????????????????????#??????????????????????????? | | ????????????????????????????????????????????????? | | ????????????????????????????????????????????????? | | ????????????????????????????????????????????????? | | ????????????????????????????????????????????????? | | ????????????????????????????????????????????????? | | ????????????????????????????????????????????????? | | ????????????????????????????????????????????????? | | ????????????????????????????????????????????????? | | ????????????????????????????????????????????????? | | ????????????????????????????????????????????????? | | ????????????????????????????????????????????????? | | ????????????????????????????????????????????????? | | ????????????????????????????????????????????????? | | ????????????????????????????????????????????????? | | ????????????????????????????????????????????????? | +----------------------------------------------------+ Best States ------------- Heat Dissipation 28 Energy Generation 19 Energy Capacity 500 Matter Stores 300 Matter Capacity 300 Sight Range 16 Robot Scan Range 14 Terrain Scan Range 16 Terrain Scan Density 85 Evasion (%) 62 Offensive Hacking 10 Item Schematics ----------------- None Robot Schematics ------------------ None Fabricated ------------ Nothing Repaired ---------- Nothing Studied --------- None Alien Tech Used ----------------- None Achievements -------------- Fitting Room Junior Dev Challenges ------------ None Game ------ Seed SwarmRelayCannon Manual? 0 Play Time 00:28:55 Cumulative 114.3 hours Start 2026.04.22 @ 20:30:50 End 2026.04.22 @ 21:02:39 Sessions 1 Manual Loads 0 Difficulty Rogue Special Mode None Game No. 80 Rogue 80 Adventurer 0 Explorer 0 Win Type - Total 0 Types 0/0/0/0/0/0/0/0/0/0 Lore% 52 Gallery% 47 Achievement% 28 Wizard Run 0 Options --------- Layout 1 ASCII 0 Keyboard 0 Movement Mouse Keybinds 0 Fullscreen 1 Font 24/Smallcaps Map View 50x35 Zoom Use 0% Tactical HUD 1 Map Filters NONE Filters NONE Steam 1 RUN: a0a21e2d-a625-4d99-b6a9-5252fb8fe734